lending/lending_fUSD_20240128
["ID","MTS","AMOUNT","RATE_DAILY","PERIOD"]
[312888256,1706413831807,-98.45539565,0.00024899,2]
[312888257,1706413831837,-1275.74996025,0.00024899,2]
[312888258,1706413831846,-300.0,0.000249,2]
[312888259,1706413831855,-550.0,0.00025,3]
[312888260,1706413831863,-1269.0,0.000266,2]
[312888261,1706413831873,-5459.0,0.000267,2]
[312888262,1706413831882,-154.92028372,0.000269,2]
[312888263,1706413831891,-600.0,0.00027,3]
[312888264,1706413831900,-158.05,0.00027397,2]
[312888265,1706413831909,-158.05,0.00028042,2]
[312888266,1706413831918,-158.05,0.00028687,2]
[312888267,1706413831927,-158.05,0.00029331,2]
[312888268,1706413831936,-158.05,0.00029976,2]
[312888269,1706413831945,-687.99,0.0003,2]
[312888270,1706413831955,-155.0,0.0003,2]
[312888271,1706413831964,-845.3466115,0.0003025,4]
[312888272,1706413831973,-500.0,0.0003025,2]
[312888273,1706413831983,-499.99,0.000305,2]
[312888274,1706413831992,-4972.77,0.000305,2]
[312888275,1706413832001,-150.0,0.000305,2]
[312888276,1706413832010,-158.05,0.0003062,2]
[312888277,1706413832020,-158.05,0.00031265,2]
[312888278,1706413832029,-419.425,0.00031358,2]
[312888279,1706413832039,-208.99998,0.00031358,2]
[312888280,1706413832048,-211.0,0.00031358,2]
[312888281,1706413832057,-158.05,0.0003191,2]
[312888282,1706413832066,-158.05,0.00032554,2]
[312888283,1706413832075,-164.74,0.00032579,2]
[312888284,1706413832084,-378.97,0.00033172,2]
[312888285,1706413832094,-156.88,0.00033177,2]
[312888286,1706413832103,-158.05,0.00033199,2]
[312888287,1706413832112,-150.0,0.00033488,2]
[312888288,1706413832122,-158.05,0.00033844,2]
[312888289,1706413832131,-156.88,0.00034041,2]
[312888290,1706413832140,-500.616153,0.00034048,4]
[312888291,1706413832150,-222.85985053,0.00034049,4]
[312888292,1706413832159,-1000.0,0.00034168,2]
[312888293,1706413832168,-176.85,0.00034312,2]
[312888294,1706413832177,-181.29,0.00034326,2]
[312888295,1706413832187,-200.0,0.00034334,2]
[312888297,1706413832196,-3736.07,0.0003434,2]
[312888299,1706413832206,-250.0,0.00034348,111]
[312888301,1706413832215,-472.09,0.00034354,2]
[312888303,1706413832225,-679.06540673,0.00034392,2]
[312888305,1706413832234,-5485.82091753,0.00034392,4]
[312888307,1706413832243,-5933.09478866,0.00034392,4]
[312888309,1706413832253,-681.73232534,0.00034392,4]
[312888310,1706413832263,-204.52799996,0.00034392,4]
[312888312,1706413832272,-214.46498886,0.00034393,4]
[312888314,1706413832282,-532.42757502,0.00034393,4]
[312888316,1706413832291,-378.81623199,0.00034393,4]
[312888318,1706413832301,-170.77287562,0.00034393,4]
[312888320,1706413832310,-202.3461783,0.00034393,4]
[312888322,1706413832319,-216.13362971,0.00034393,4]
[312888324,1706413832329,-1586.52836602,0.00034393,2]
[312888326,1706413832338,-935.13066472,0.00034393,2]
[312888328,1706413832347,-305.07253524,0.00034394,4]
[312888330,1706413832356,-167.64878724,0.00034394,4]
[312888331,1706413832366,-507.12166094,0.00034394,4]
[312888332,1706413832375,-206.91240512,0.00034394,4]
[312888333,1706413832384,-5067.41536167,0.00034394,2]
[312888334,1706413832394,-1000.0,0.00034394,4]
[312888335,1706413832403,-474.99101568,0.00034394,2]
[312888336,1706413832684,-20210.06102423,0.00034394,2]
[312888337,1706413832697,-346.80171835,0.00034394,2]
[312888338,1706413832724,-2419.67001446,0.00034394,2]
[312888339,1706413832736,-1021.05941558,0.00034394,2]
[312888340,1706413832748,-631.41852513,0.00034394,2]
[312888341,1706413832773,-9836.68309227,0.00034394,2]
[312888342,1706413832784,-564.28815814,0.00034394,2]
[312888343,1706413832795,-5234.68465695,0.00034394,2]
[312888349,1706413838349,-8686.71568739,0.00034394,2]
[312888350,1706413838358,-32220.01,0.00034395,2]
[312888351,1706413838368,-2390.59,0.00034442,2]
[312888353,1706413838377,-158.05,0.00034488,2]
[312888355,1706413838386,-602.55948382,0.00034499,4]
[312888357,1706413838395,-3736.07,0.00034539,2]
[312888359,1706413838404,-150.0,0.00034548,10]
[312888361,1706413838414,-150.0,0.00034596,2]
[312888363,1706413838423,-3736.07,0.00034737,2]
[312888365,1706413838432,-155.76,0.000348,2]
[312888367,1706413838442,-155.76,0.000348,2]
[312888369,1706413838452,-155.76,0.000348,2]
[312888371,1706413838462,-624.68,0.00034819,2]
[312888373,1706413838470,-156.88,0.00034906,2]
[312888375,1706413838479,-3507.51913128,0.00034936,2]
[312888509,1706413843897,-210.22,0.000348,2]
[312888510,1706413843907,-228.55086872,0.00034936,2]
[312888511,1706413843916,-1.11414238,0.00035,3]
[312888512,1706413843928,-820.48472415,0.00035,3]
[312888513,1706413843945,-3057.48885357,0.00035,3]
[312888514,1706413844025,-353.659,0.00035,3]
[312888515,1706413844037,-767.2532799,0.00035,3]
[312888516,1706413844046,-158.05,0.00035133,2]
[312888517,1706413844055,-3736.07,0.00035134,2]
[312888518,1706413844066,-3736.07,0.00035332,2]
[312888519,1706413844075,-667.69062454,0.00035531,2]
[312888520,1706413844089,-3068.37937546,0.00035531,2]
[312888521,1706413844100,-167.05,0.00035637,2]
[312888522,1706413844110,-3736.07,0.00035729,2]
[312888523,1706413844119,-158.05,0.00035777,2]
[312888524,1706413844130,-499.99,0.00035777,2]
[312888525,1706413844139,-1490.0,0.000359,12]
[312888526,1706413844149,-3736.07,0.00035928,2]
[312888527,1706413844159,-3736.07,0.00036126,2]
[312888528,1706413844169,-158.05,0.00036422,2]
[312888529,1706413844178,-1000.0,0.00036655,10]
[312888530,1706413844187,-1000.0,0.00036655,10]
[312888531,1706413844197,-692.91042181,0.00036761,4]
[312888532,1706413844208,-500.0,0.000369,2]
[312888533,1706413844219,-500.0,0.000369,2]
[312888534,1706413844230,-500.0,0.000369,2]
[312888535,1706413844241,-500.0,0.000369,2]
[312888536,1706413844252,-500.0,0.000369,2]
[312888537,1706413844263,-220.08,0.000369,2]
[312888538,1706413844274,-500.0,0.000369,2]
[312888539,1706413844283,-500.0,0.000369,2]
[312888540,1706413844295,-500.0,0.000369,2]
[312888541,1706413844305,-500.0,0.000369,2]
[312888542,1706413844314,-500.0,0.000369,2]
[312888543,1706413844326,-500.0,0.000369,2]
[312888544,1706413844336,-500.0,0.000369,2]
[312888545,1706413844346,-500.0,0.000369,2]
[312888546,1706413844359,-500.0,0.000369,2]
[312888547,1706413844368,-500.0,0.000369,2]
[312888548,1706413844378,-500.0,0.000369,2]
[312888549,1706413844388,-500.0,0.000369,2]
[312888550,1706413844398,-500.0,0.000369,2]
[312888551,1706413844407,-500.0,0.000369,2]
[312888552,1706413844417,-500.0,0.000369,2]
[312888553,1706413844426,-500.0,0.000369,2]
[312888554,1706413844436,-158.05,0.00037067,2]
[312888555,1706413844445,-158.05,0.00037711,2]
[312888556,1706413844455,-279.1580792,0.00037898,4]
[312888557,1706413844466,-3303.45578245,0.00037899,2]
[312888558,1706413844476,-722.440287,0.000379,2]
[312888559,1706413844485,-49.03496002,0.000379,2]
[312888560,1706413844498,-347.14930693,0.000379,2]
[312888563,1706413844552,-510.38064613,0.000379,2]
[312888565,1706413844566,-13566.09387145,0.000379,2]
[312888566,1706413844576,-3000.0,0.000379,20]
[312888567,1706413844586,-283.17000149,0.000379,5]
[312888568,1706413844595,-14472.65878453,0.000379,2]
[312888569,1706413844606,-4452.90707322,0.000379,2]
[312888570,1706413844621,-2063.75470879,0.000379,2]
[312888571,1706413844638,-1707.12749173,0.000379,2]
[312888572,1706413844657,-4005.76266678,0.000379,2]
[312888600,1706413848901,-276.9108,0.0003025,2]
[312888601,1706413884152,1939.43049152,0.00022999,7]
[312888602,1706413884453,483.42245739,0.00021849,2]
[312888603,1706413893168,321.06818231,0.00022,2]
[312888615,1706414063693,235.65506014,0.00022,2]
[312888618,1706414164010,211.00410547,0.00022,2]
[312888619,1706414410284,150.01,0.0002061,2]
[312888621,1706414499310,234.42,0.00022451,2]
[312888622,1706414541450,2364.42019469,0.00022209,2]
[312888623,1706414541470,474.24980531,0.00022209,2]
[312888624,1706414549603,3525.75019469,0.00022276,2]
[312888625,1706414549624,4000.0,0.00022276,2]
[312888626,1706414549645,4000.0,0.00022276,2]
[312888627,1706414549664,4000.0,0.00022276,2]
[312888628,1706414549683,4000.0,0.00022276,2]
[312888629,1706414549704,4000.0,0.00022276,2]
[312888630,1706414549724,364.24980531,0.00022276,2]
[312888631,1706414585937,2000.0,0.00022285,2]
[312888632,1706414598802,250.0,0.00022285,2]
[312888633,1706414618141,630.05,0.00022365,2]
[312888634,1706414680741,150.0,0.00022179,2]
[312888635,1706414719736,499.33,0.00021904,2]
[312888636,1706414781049,106.37019469,0.0002196,2]
[312888637,1706414781070,693.62980531,0.0002196,2]
[312888638,1706414793166,200.0,0.0002188,2]
[312888639,1706414816453,1374.2053559,0.00022501,2]
[312888640,1706414816984,1180.63994439,0.00022501,2]
[312888641,1706414820280,551.5248944,0.00021927,2]
[312888642,1706414820299,4000.0,0.00021927,2]
[312888643,1706414820319,4000.0,0.00021927,2]
[312888644,1706414820338,96.7751056,0.00021927,2]
[312888645,1706414828389,250.0,0.0002229,2]
[312888646,1706414830592,150.01,0.00020372,2]
[312888647,1706414831172,155.0,0.00022501,2]
[312888648,1706414832124,-155.36291351,0.00022502,2]
[312888649,1706414856553,285.95951761,0.00022501,2]
[312888650,1706414858275,162.54932677,0.00022501,2]
[312888651,1706414876570,2899.70605002,0.00022501,2]
[312888652,1706414876589,967.60961283,0.00022501,2]
[312888653,1706414879058,2143.62450616,0.00022501,2]
[312888654,1706414882061,-108.59123203,0.00022502,2]
[312888655,1706414882225,-1000.0,0.00022502,2]
[312888656,1706414882251,-19037.90879463,0.00022503,2]
[312888657,1706414882275,-150.0,0.00022508,2]
[312888658,1706414882301,-565.0,0.00022509,2]
[312888659,1706414882328,-170.59839131,0.00022514,2]
[312888660,1706414882353,-1374.2053559,0.00022609,2]
[312888661,1706414882376,-157.51468164,0.00022609,2]
[312888662,1706414882400,-163.51557361,0.00022609,2]
[312888663,1706414882424,-289.41350407,0.00022609,2]
[312888664,1706414882452,-792.10495924,0.0002261,2]
[312888665,1706414882476,-121726.32706581,0.00022611,2]
[312888666,1706414882501,-170.59839128,0.00022643,2]
[312888667,1706414882525,-327.25835994,0.00022768,2]
[312888668,1706414882549,-178.94287556,0.00022768,2]
[312888669,1706414882578,-170.59839128,0.00022771,2]
[312888670,1706414882603,-7650.9737,0.000228,2]
[312888671,1706414882629,-1572.5168,0.000228,2]
[312888672,1706414882655,-1343.97140882,0.000228,2]
[312888673,1706414882680,-1343.9714088,0.00022814,2]
[312888674,1706414882706,-1343.9714088,0.00022829,2]
[312888675,1706414882731,-1343.9714088,0.00022843,2]
[312888676,1706414882757,-930.91402946,0.00022898,2]
[312888677,1706414882782,-13075.87659922,0.00022899,2]
[312888678,1706414882809,-500.0,0.00022899,2]
[312888679,1706414882835,-1078.2979,0.000229,2]
[312888680,1706414882859,-241316.8581,0.000229,2]
[312888681,1706414882885,-15058.4765,0.000229,2]
[312888682,1706414882910,-152.94203163,0.000229,2]
[312888683,1706414882936,-170.59839128,0.000229,2]
[312888684,1706414882964,-541.86596778,0.000229,2]
[312888685,1706414882988,-1000.0,0.000229,2]
[312888686,1706414883012,-166.02288615,0.000229,2]
[312888687,1706414883038,-2685.77867949,0.000229,2]
[312888688,1706414883063,-429.74770026,0.000229,2]
[312888689,1706414883089,-529.2016699,0.000229,2]
[312888690,1706414883114,-1949.22568896,0.000229,6]
[312888691,1706414883138,-12211.35672126,0.000229,2]
[312888692,1706414883163,-675.48,0.00022938,2]
[312888693,1706414883188,-195.04292305,0.0002299,2]
[312888694,1706414883215,-443.68927642,0.00022998,2]
[312888695,1706414883240,-767.00185016,0.00022998,2]
[312888696,1706414883265,-41977.43884464,0.00022998,2]
[312888697,1706414883292,-160.93250234,0.00022998,2]
[312888698,1706414883319,-2594.05254131,0.00022998,2]
[312888699,1706414883344,-4650.49664286,0.00022998,2]
[312888700,1706414883368,-211.01515843,0.00022998,2]
[312888701,1706414883394,-499.99,0.00022998,2]
[312888702,1706414883418,-156.73529783,0.00022999,2]
[312888703,1706414883441,-496.66880405,0.00022999,2]
[312888704,1706414883464,-156.52790812,0.00022999,2]
[312888705,1706414883488,-199.66713646,0.00022999,2]
[312888706,1706414883512,-708.98261084,0.00022999,2]
[312888707,1706414883540,-1826.96276829,0.00022999,2]
[312888708,1706414883565,-158.30384599,0.00022999,2]
[312888709,1706414883590,-200.70200142,0.00022999,2]
[312888710,1706414883617,-1428.80608317,0.00022999,2]
[312888711,1706414883644,-157.67787415,0.00022999,2]
[312888712,1706414883670,-157.09265037,0.00022999,2]
[312888713,1706414883695,-10566.79859535,0.00022999,2]
[312888714,1706414883722,-7264.16986553,0.00022999,2]
[312888715,1706414883847,-310.39716462,0.00022999,2]
[312888716,1706414883874,-308.67673927,0.00023,2]
[312888717,1706414883901,-770947.57433842,0.00023,2]
[312888733,1706415033311,-1374.2053559,0.00022798,2]
[312888735,1706415033321,-2253.6619,0.00022799,2]
[312888736,1706415033331,-236.9766079,0.00022856,2]
[312888737,1706415033340,-72.54719849,0.000229,2]
[312888738,1706415033367,-927.45280151,0.000229,2]
[312888739,1706415033376,-415.50178073,0.000229,2]
[312888740,1706415033386,-1961.82516546,0.000229,2]
[312888741,1706415033395,-156.22998821,0.00022998,2]
[312888742,1706415033404,-265.51202879,0.00022998,2]
[312888743,1706415033414,-6888.5308732,0.00022998,2]
[312888744,1706415033427,-2721.99850742,0.00022998,2]
[312888745,1706415033442,-1059.3612281,0.00022998,2]
[312888746,1706415033454,-1992.94131316,0.00022998,2]
[312888747,1706415033465,-597.22605472,0.00022998,2]
[312888748,1706415033475,-147.4156314,0.00022999,2]
[312888749,1706415033537,-562.43544538,0.00022999,2]
[312888750,1706415033549,-1101.33165979,0.00022999,2]
[312888751,1706415033561,-367.71962481,0.00022999,2]
[312888752,1706415033606,-298.69050621,0.00022999,2]
[312888753,1706415033665,-689.30241408,0.00022999,2]
[312888754,1706415033681,-731.51550595,0.00022999,2]
[312888755,1706415033691,-154.33836963,0.00023,2]
[312888756,1706415033701,-346.92546538,0.00023,2]
[312888757,1706415033712,-525.01690073,0.00023,2]
[312888769,1706415038051,-808.75030777,0.000229,2]
[312888770,1706415038062,-741.27723955,0.000229,2]
[312888771,1706415038073,-420.8888349,0.000229,2]
[312888772,1706415038085,-3404.96925298,0.000229,2]
[312888773,1706415038094,-9087.8992729,0.00023,2]
[312888774,1706415038105,-1320.19388276,0.00023,2]
[312888775,1706415038122,-16267.76319911,0.00023,2]
[312888776,1706415038132,-533.10243056,0.00023,2]
[312888777,1706415038144,-31220.05711848,0.00023,2]
[312888778,1706415038155,-2150.16565339,0.00023,2]
[312888779,1706415038167,-4459.38620389,0.00023,2]
[312888780,1706415038185,-29983.93367524,0.00023,2]
[312888781,1706415038196,-2052.20196968,0.00023,2]
[312888782,1706415038226,-2904.58117493,0.00023,2]
[312888783,1706415038338,-626.62065293,0.00023,2]
[312888784,1706415038349,-4259876.23746954,0.00023,2]
[312888785,1706415038360,-63606.01253809,0.00023,2]
[312888786,1706415038395,-1725.061895,0.00023,2]
[312889015,1706415040552,-5506.7444118,0.00023,2]
[312889022,1706415040611,-793.57873986,0.00023,2]
[312889089,1706415041225,-291628.58995271,0.00023,2]
[312889092,1706415041282,-713.6500075,0.00023,2]
[312889093,1706415041293,-843.56738472,0.00023,2]
[312889094,1706415041304,-6285.25396417,0.00023,2]
[312889095,1706415041345,-100390.7259292,0.00023,2]
[312889096,1706415041356,-913.72473074,0.00023,2]
[312889097,1706415041368,-372.03993255,0.00023,2]
[312889098,1706415041380,-1028.70000005,0.00023,2]
[312889099,1706415041391,-913.54330104,0.00023,2]
[312889100,1706415041403,-4860.48190982,0.00023,2]
[312889101,1706415041462,-6809.0625918,0.00023,2]
[312889104,1706415043106,-572.09977409,0.000229,2]
[312889105,1706415043118,-702.38304042,0.000229,2]
[312889106,1706415043130,-814.20859108,0.000229,2]
[312889107,1706415043165,-651.01243477,0.000229,2]
[312889108,1706415043225,-13080.93412096,0.000229,2]
[312889109,1706415043234,-168298.02592847,0.00023,2]
[312889110,1706415043245,-288.71974104,0.00023,2]
[312889111,1706415043284,-4474.55107622,0.00023,2]
[312889112,1706415043295,-1210.36080118,0.00023,2]
[312889113,1706415043317,-233.7278869,0.00023,2]
[312889114,1706415043344,-291.23162982,0.00023,2]
[312889115,1706415043356,-1010.20925933,0.00023,2]
[312889116,1706415043368,-127185.38911704,0.00023,2]
[312889117,1706415043379,-432.0,0.00023,2]
[312889118,1706415043402,-4138.0719917,0.00023,2]
[312889119,1706415043414,-2390.5060322,0.00023,2]
[312889120,1706415043425,-688.21862046,0.00023,2]
[312889121,1706415043439,-1133707.8524428,0.00023,2]
[312889122,1706415043451,-190097.84655138,0.00023,2]
[312889123,1706415043463,-56039.12598617,0.00023,2]
[312889140,1706415048685,-316.75908617,0.00022999,2]
[312889141,1706415048697,-500.62895699,0.00022999,2]
[312889142,1706415049055,-168.61022852,0.00022999,2]
[312889143,1706415049065,-437.58118756,0.00022999,2]
[312889144,1706415049074,-24198.56630077,0.00023,2]
[312889160,1706415049246,-3549.62626472,0.00023,2]
[312889163,1706415049257,-725.0649988,0.00023,2]
[312889165,1706415049268,-328.53934177,0.00023,2]
[312889167,1706415049280,-644.28818466,0.00023,2]
[312889169,1706415049291,-625.15762086,0.00023,2]
[312889172,1706415049307,-865.07617275,0.00023,2]
[312889176,1706415049327,-325.87400702,0.00023,2]
[312889179,1706415049344,-649.64689608,0.00023,2]
[312889198,1706415398555,-420.0,0.000229,2]
[312889199,1706415412366,-580.0,0.000229,2]
[312889200,1706415412387,-300.0,0.00022999,2]
[312889201,1706415412408,-8.76588101,0.00023,2]
[312889202,1706415431768,-2505.0478316,0.0002277,2]
[312889203,1706415431790,-279.88145599,0.00022899,2]
[312889204,1706415431812,-1215.07071241,0.00023,2]
[312889205,1706415433285,-4000.0,0.00023,2]
[312889206,1706415434322,-4000.0,0.00023,2]
[312889207,1706415435635,-4000.0,0.00023,2]
[312889208,1706415436545,-4000.0,0.00023,2]
[312889209,1706415437300,-4000.0,0.00023,2]
[312889210,1706415438053,-4000.0,0.00023,2]
[312889211,1706415438677,-4000.0,0.00023,2]
[312889212,1706415439659,-4000.0,0.00023,2]
[312889213,1706415440682,-4000.0,0.00023,2]
[312889214,1706415441356,-4000.0,0.00023,2]
[312889215,1706415442122,-4000.0,0.00023,2]
[312889216,1706415444093,-4000.0,0.00023,2]
[312889217,1706415447608,-4000.0,0.00023,2]
[312889218,1706415450125,-282.80490404,0.00022999,2]
[312889219,1706415450146,-3717.19509596,0.00023,2]
[312889220,1706415452262,-4000.0,0.00023,2]
[312889221,1706415454303,-4000.0,0.00023,2]
[312889222,1706415480622,3131.46884188,0.00021849,2]
[312889223,1706415482979,188.42272125,0.00020698,2]
[312889226,1706415893730,150.0,0.00022498,2]
[312889227,1706415893750,30.11490934,0.00022498,2]
[312889228,1706415900593,150.0,0.00020698,2]
[312889229,1706415900615,150.0,0.00020698,2]
[312889230,1706415900635,150.0,0.00020698,2]
[312889231,1706415900658,8.68981154,0.00020698,2]
[312889232,1706416150096,-1000.0,0.00022796,2]
[312889233,1706416150116,-1776.23860038,0.00022797,2]
[312889234,1706416150136,-526.01403717,0.00022799,2]
[312889235,1706416150157,-160.50007312,0.000228,2]
[312889236,1706416150176,-33826.26385058,0.0002289,2]
[312889237,1706416150196,-19037.90879463,0.00022891,2]
[312889238,1706416150216,-946.60101861,0.00022898,2]
[312889239,1706416150243,-204.84671022,0.00022898,2]
[312889240,1706416150263,-40972.74991529,0.000229,2]
[312889251,1706416232222,-1000.0,0.00022899,2]
[312889252,1706416232235,-7187.96528008,0.00022899,2]
[312889253,1706416232247,-650.41397724,0.00022899,2]
[312889254,1706416232259,-492.21325743,0.00022899,2]
[312889255,1706416232271,-385.33323618,0.00022899,2]
[312889256,1706416232282,-3025.38731659,0.00022899,2]
[312889257,1706416232293,-1934.24120179,0.00022899,2]
[312889258,1706416232338,-1588.9563698,0.00022899,2]
[312889259,1706416232348,-3524.15458942,0.000229,2]
[312889260,1706416232359,-627.62684945,0.000229,2]
[312889261,1706416232370,-277.90532861,0.000229,2]
[312889262,1706416232397,-1169.53619494,0.000229,2]
[312889263,1706416232459,-22517.63422229,0.000229,2]
[312889264,1706416232468,-407.079,0.000229,2]
[312889265,1706416232477,-9291.5958,0.000229,2]
[312889266,1706416232487,-365.7836,0.000229,2]
[312889267,1706416232496,-294.58885122,0.000229,2]
[312889268,1706416232505,-150.08306563,0.000229,2]
[312889269,1706416232514,-198.46968548,0.000229,2]
[312889270,1706416232523,-801.62768654,0.00022998,2]
[312889271,1706416232533,-294.31141184,0.00022998,2]
[312889272,1706416232543,-371.01115216,0.00022998,2]
[312889273,1706416232551,-14139.54081534,0.00022998,2]
[312889274,1706416232561,-10570.52821242,0.00022999,2]
[312889275,1706416232571,-155.15806323,0.00022999,2]
[312889276,1706416232580,-803.38797325,0.00022999,2]
[312889278,1706416232590,-499.99,0.00022999,2]
[312889280,1706416232599,-1159.44,0.00022999,2]
[312889282,1706416232610,-1011.4123,0.00022999,2]
[312889284,1706416232620,-13550.58437504,0.00023,2]
[312889286,1706416232631,-5808.53689687,0.00023,2]
[312889288,1706416232645,-10455.66698397,0.00023,2]
[312889291,1706416232657,-1283.19,0.00023,2]
[312889293,1706416232674,-555.79337352,0.00023,2]
[312889300,1706416240094,-84680.95534811,0.00023,2]
[312889301,1706416240106,-1203.4919549,0.00023,2]
[312889302,1706416240210,-730.50066288,0.00023,2]
[312889303,1706416240222,-289.4002629,0.00023,2]
[312889304,1706416240271,-1464.98189673,0.00023,2]
[312889305,1706416240282,-553.19678644,0.00023,2]
[312889306,1706416240293,-43582.05287325,0.00023,2]
[312889307,1706416240305,-664.88675611,0.00023,2]
[312889308,1706416240317,-2377.06365989,0.00023,2]
[312889309,1706416240333,-320.02750419,0.00023,2]
[312889310,1706416240453,-1024.88843048,0.00023,2]
[312889311,1706416240522,-2060.35584956,0.00023,2]
[312889312,1706416240533,-797.04011047,0.00023,2]
[312889313,1706416240545,-4259876.23746954,0.00023,2]
[312889314,1706416240556,-63606.01253809,0.00023,2]
[312889315,1706416240571,-848.26710872,0.00023,2]
[312889341,1706416240810,-816.22100029,0.00023,2]
[312889342,1706416240869,-525.21345931,0.00023,2]
[312889343,1706416240880,-2200.51,0.00023,2]
[312889344,1706416240891,-3125.37646741,0.00023,2]
[312889345,1706416240904,-543.43566378,0.00023,2]
[312889346,1706416240915,-639.14654176,0.00023,2]
[312889347,1706416240929,-282.89846441,0.00023,2]
[312889348,1706416240940,-18358.03122991,0.00023,2]
[312889349,1706416240952,-2541.565,0.00023,2]
[312889350,1706416240990,-735.43609094,0.00023,2]
[312889351,1706416241002,-3303.94373171,0.00023,2]
[312889352,1706416241014,-336.91501424,0.00023,2]
[312889353,1706416241025,-1138.50001,0.00023,2]
[312889354,1706416241037,-1019.69321672,0.00023,2]
[312889355,1706416241657,-295.18948998,0.00023,2]
[312889364,1706416243234,-543.33974753,0.00023,2]
[312889365,1706416243293,-9945.0,0.00023,2]
[312889366,1706416243354,-251.90734568,0.00023,2]
[312889367,1706416243366,-567.36316,0.00023,2]
[312889368,1706416244076,-653.03474555,0.00023,2]
[312889369,1706416244787,-567814.12764984,0.00023,2]
[312889370,1706416244802,-190097.84655138,0.00023,2]
[312889371,1706416244813,-5242.2288499,0.00023,2]
[312889372,1706416244825,-8861.70707,0.00023,2]
[312889384,1706416248867,-41620.21243931,0.00023,2]
[312889404,1706416249041,-2329.17685,0.00023,2]
[312889415,1706416249154,-24336.25,0.00023,2]
[312889416,1706416249165,-10358.21353334,0.00023,2]
[312889417,1706416249411,-425.58743,0.00023,2]
[312889418,1706416262701,150.0,0.00021849,2]
[312889419,1706416262724,150.0,0.00021849,2]
[312889420,1706416262743,150.0,0.00021849,2]
[312889421,1706416262763,150.0,0.00021849,2]
[312889422,1706416262783,110.4316209,0.00021849,2]
[312889423,1706416264985,-544.00764046,0.00022975,2]
[312889424,1706416265006,-219.03715244,0.00022976,2]
[312889425,1706416265036,-10236.9552071,0.0002299,2]
[312889426,1706416282345,220.08069729,0.00022078,2]
[312889436,1706416385287,152.45,0.00021962,2]
[312889437,1706416461100,150.0,0.00022,2]
[312889438,1706416461121,150.0,0.00022,2]
[312889439,1706416461142,150.0,0.00022,2]
[312889440,1706416461164,70.32305343,0.00022,2]
[312889441,1706416463541,-153.84451204,0.00022685,2]
[312889442,1706416463566,-266.01806587,0.00022778,2]
[312889443,1706416463591,-204.80922949,0.00022779,2]
[312889444,1706416463615,-1712.74872661,0.00022779,2]
[312889445,1706416463641,-355.22718817,0.0002278,2]
[312889446,1706416463666,-245.41926485,0.0002278,2]
[312889447,1706416463691,-250.80927785,0.00022781,2]
[312889448,1706416463714,-155.0,0.00022782,2]
[312889449,1706416463738,-544.00764046,0.00022783,2]
[312889450,1706416463764,-418.95710961,0.00022783,2]
[312889451,1706416463787,-4574.3701,0.0002279,2]
[312889452,1706416475982,250.0,0.00022,2]
[312889453,1706416477268,250.0,0.00022274,2]
[312889454,1706416480349,405.08091435,0.00021981,2]
[312889455,1706416491532,-300.0,0.00022894,2]
[312889456,1706416491558,-150.0,0.00022894,2]
[312889457,1706416491582,-1134.93571249,0.00022897,2]
[312889458,1706416491606,-250.65300847,0.00022897,2]
[312889459,1706416491631,-359.90801273,0.00022897,2]
[312889460,1706416491656,-204.16265434,0.00022897,2]
[312889461,1706416491681,-422.65642048,0.00022897,2]
[312889462,1706416491707,-269.17505852,0.00022897,2]
[312889463,1706416491732,-550.71994931,0.00022897,2]
[312889464,1706416491759,-157.36502514,0.00022897,2]
[312889465,1706416491783,-253.71226931,0.00022897,2]
[312889466,1706416491811,-2655.85426993,0.00022897,2]
[312889467,1706416491838,-890.6054,0.00022899,2]